Cogmind - Beta 13 @@@ ROGUE MODE // 2024.07.15 @ 22:39:14 Player: Sgt. SmokeWeed Result: Self-destructed Performance ------------- Evolutions (3) 1500 Regions Visited (8) 1600 Robots Destroyed (47) 235 Value Destroyed (997) 997 Prototype IDs (26) 520 Alien Tech Used (0) 0 Bonus (1312) 1312 TOTAL SCORE: 6164 Bonus ------- High Alert Combat Kills 125 Follower Combat Kills 692 Entered DSFs 500 Aligned with FarCom 300 Friendly Fire -305 Cogmind --------- Core Integrity 538/700 Matter 12/300 Energy 99/100 System Corruption 0% Temperature Cool (0) Movement Core (50) Location -7/DSF Parts ------- > --- POWER (2) -------- (None) > --- PROPULSION (2) --- (None) > --- UTILITY (5) ------ Weight Redist. System Hacking Suite > --- WEAPON (4) ------- (None) > --- INVENTORY (5) ---- Improved Aluminum Leg Autogun Peak State ------------ > --- POWER ------------ Heavy Ion Engine > --- PROPULSION ------- Improved Aluminum Leg Carbon-fiber Leg > --- UTILITY ---------- Weight Redist. System Hacking Suite Hacking Suite > --- WEAPON ----------- Gauss Cannon Gauss Cannon Gauss Cannon Scatter Rocket Array > --- INVENTORY -------- Assault Cannon Assault Cannon Gauss Cannon [Rating: 35] Favorites ----------- Power Heavy Ion Engine Engine Heavy Ion Engine Power Core Nuclear Core Propulsion Aluminum Leg Leg Aluminum Leg Flight Unit Flight Unit Utility Hacking Suite Device Weight Redist. System Hackware Hacking Suite Protection Weapon Shielding Weapon Gauss Cannon Energy Cannon Latent Energy Streamer Ballistic Gun Assault Rifle Ballistic Cannon Gauss Cannon Launcher Proton Missile Launcher Special Weapon Mining Laser Build | -11 -10 -10 -10 -9 -8 -8 -7 -7 ------- Run | Yrd Mat Min Exi Min Mat Sto Fac DSF Slots Evolved 6 | . . . . . 4 . 2 . Power 1 | . . . . . . . 1 . Propulsion . | . . . . . . . . . Utility 3 | . . . . . 2 . 1 . Weapon 2 | . . . . . 2 . . . Parts Attached 40 | 5 1 . 1 6 2 20 4 1 Power 5 | 1 1 . . 1 1 1 . . Engine 4 | 1 1 . . 1 . 1 . . Core 1 | . . . . . 1 . . . Reactor . | . . . . . . . . . Propulsion 13 | 2 . . . 4 . 7 . . Treads . | . . . . . . . . . Leg 9 | 2 . . . 2 . 5 . . Wheel . | . . . . . . . . . Hover . | . . . . . . . . . Flight 4 | . . . . 2 . 2 . . Utility 4 | . . . . . 1 3 . . Device 1 | . . . . . . 1 . . Storage . | . . . . . . . . . Processor . | . . . . . . . . . Hackware 2 | . . . . . 1 1 . . Protection 1 | . . . . . . 1 . . Artifact . | . . . . . . . . . Weapon 18 | 2 . . 1 1 . 9 4 1 Energy Gun . | . . . . . . . . . Energy Cannon 1 | . . . 1 . . . . . Ballistic Gun 3 | 2 . . . . . . 1 . Ballistic Cannon 9 | . . . . . . 8 1 . Launcher 4 | . . . . . . 1 2 1 Special Weapon 1 | . . . . 1 . . . . Impact Weapon . | . . . . . . . . . Slashing Weapon . | . . . . . . . . . Piercing Weapon . | . . . . . . . . . Special Melee Weapon . | . . . . . . . . . Unidentified Prototypes 3 | . 1 . . . . 2 . . Parts Lost 20 | . 4 . . . 1 12 . 3 Power 2 | . . . . . . 2 . . Propulsion 6 | . 2 . . . . 4 . . Utility 1 | . . . . . . 1 . . Weapon 11 | . 2 . . . 1 5 . 3 Highest Loss Streak 8 | . 4 . . . 1 8 . 3 To Critical Strikes . | . . . . . . . . . Average Slot Usage (%) 52 | . 67 . 11 33 54 73 39 25 Engine 7 | . 14 . . 14 3 7 . . Leg 9 | . 26 . . 2 18 13 3 . Device 2 | . . . . . . 4 7 7 Hackware 8 | . . . . . 9 16 7 7 Energy Cannon 5 | . . . 11 14 9 1 . . Ballistic Gun 1 | . 26 . . . . . 2 . Ballistic Cannon 13 | . . . . . . 27 7 4 Launcher 1 | . . . . . . 1 10 5 Special Weapon 1 | . . . . 2 9 . . . Naked Turns 114 | . . 54 60 . . . . . Heaviest Build 37 | 8 11 . 10 19 19 37 24 14 Greatest Support 34 | 20 20 3 3 20 20 34 13 3 Greatest Overweight (x) 11 | 2 2 . 3 6 . 11 5 4 Average Overweight (x) 1 | . . . 1 4 . 1 1 1 Largest Inventory Capacity 5 | 5 5 5 5 5 5 5 5 5 Average Capacity 5 | 5 5 5 5 5 5 5 5 5 Most Carried 5 | . . 1 1 1 5 5 3 3 Average Carried 1 | . . 1 1 . . 1 1 2 Final Capacity 5 | 5 5 5 5 5 5 5 5 5 Final Carried 5 | . . 1 1 . 5 . 3 2 Class Distribution -------------------- 56% | Mutant 28% | Hacker-Skirmisher 5% | Commander-Skirmisher 4% | Skirmisher 4% | Hacker-Mutant Dominant Class ---------------- Mutant | -10/Materials Mutant | -10/Mines Mutant | -10/Exiles Mutant | -9/Mines Mutant | -8/Materials Hacker-Skirmisher | -8/Storage Mutant | -7/Factory Mutant | -7/DSF Resources | -11 -10 -10 -10 -9 -8 -8 -7 -7 ----------- Run | Yrd Mat Min Exi Min Mat Sto Fac DSF Matter Collected 1371 | 200 45 25 . 125 25 940 . 11 Remotely . | . . . . . . . . . Salvage Created 1461 | . 45 . . . 881 535 . . Parts 95 | . 3 . . . 52 40 . . Haulers Intercepted 4 | . . . . . . 4 . . Recyclers Shooed 1 | . . . . 1 . . . . Parts Field Recycled . | . . . . . . . . . Retrieved Matter . | . . . . . . . . . Parts Self-Destructed . | . . . . . . . . . Prevented . | . . . . . . . . . Kills | -11 -10 -10 -10 -9 -8 -8 -7 -7 ------- Run | Yrd Mat Min Exi Min Mat Sto Fac DSF Combat Hostiles Destroyed 24 | . 1 . . . 11 12 . . Guns 1 | . 1 . . . . . . . Cannons 9 | . . . . . . 9 . . AOE 13 | . . . . . 10 3 . . Classes Destroyed 10 | . 1 . . . 6 3 . . Worker 3 | . . . . . 2 1 . . Builder 8 | . . . . . 4 4 . . Tunneler 1 | . . . . . 1 . . . Hauler 4 | . . . . . . 4 . . Recycler 3 | . . . . . 2 1 . . Watcher 2 | . . . . . 1 1 . . Swarmer 10 | . . . . . 6 4 . . Grunt 11 | . 1 . . . 7 3 . . Sentry 4 | . . . . . . 4 . . Hunter 1 | . . . . . . 1 . . Best Kill Streak 17 | . 1 . . . 17 6 . . Combat Bots Only 11 | . 1 . . . 11 4 . . Max Kills in Single Turn 5 | . 1 . . . 5 4 . . Gunslinging . | . . . . . . . . . Exploded 4 | . . . . . 4 2 . . Melee . | . . . . . . . . . Uniques/NPCs Destroyed . | . . . . . . . . . Combat | -11 -10 -10 -10 -9 -8 -8 -7 -7 -------- Run | Yrd Mat Min Exi Min Mat Sto Fac DSF Hostile Shots Fired 247 | . 75 4 . 9 16 112 . 31 Missed 73 | . 22 2 . 1 5 28 . 15 Damage Taken 2890 | . 626 30 . 95 234 1558 . 347 Core 730 | . 164 30 . 26 63 285 . 162 Absorbed by Shields . | . . . . . . . . . Core Remaining (%) 49 | 100 . . . 12 . 36 . . Volleys Fired 84 | . 23 . . 6 9 44 . 2 Largest 4 | . 2 . . 1 1 4 . 1 Hottest 194 | . 40 . . 100 60 194 . 39 Shots Fired 194 | . 45 . . 6 10 131 . 2 Gun 45 | . 45 . . . . . . . Cannon 137 | . . . . . 10 127 . . Launcher 6 | . . . . . . 4 . 2 Special 6 | . . . . 6 . . . . Kinetic 169 | . 45 . . . . 124 . . Thermal 6 | . . . . 6 . . . . Explosive 4 | . . . . . . 4 . . Electromagnetic 15 | . . . . . 10 3 . 2 Robot Hit Streak 11 | . 11 . . . 2 4 . . Robot Miss Streak 13 | . 2 . . . 3 13 . 2 Penetration Max . | . . . . . . . . . Secondary Targets . | . . . . . . . . . Shots Hit Robots 78 | . 30 . . . 3 45 . . Core Hits 76 | . 5 . . . 29 41 . 1 Critical Kills . | . . . . . . . . . Critical Parts Destroyed . | . . . . . . . . . Critical Strikes 7 | . . . . . . 7 . . Blast 7 | . . . . . . 7 . . Melee Attacks . | . . . . . . . . . Impact . | . . . . . . . . . Slashing . | . . . . . . . . . Piercing . | . . . . . . . . . Sneak Attacks . | . . . . . . . . . Combat Hostiles . | . . . . . . . . . Follow-up Attacks . | . . . . . . . . . Damage Inflicted 4508 | . 326 . . 3 1884 2186 . 109 Guns 325 | . 325 . . . . . . . Cannons 1316 | . . . . . 39 1277 . . Explosions 2818 | . . . . . 1845 864 . 109 Melee . | . . . . . . . . . Ramming 49 | . 1 . . 3 . 45 . . Kinetic 1602 | . 325 . . . . 1277 . . Thermal 55 | . . . . . 55 . . . Explosive 437 | . . . . . . 437 . . Electromagnetic 2365 | . . . . . 1829 427 . 109 Impact . | . . . . . . . . . Slashing . | . . . . . . . . . Piercing . | . . . . . . . . . Highest Corruption 33 | . . . . . 23 33 . . Average Corruption 29 | . . . . . 13 32 . . Corruption Purged . | . . . . . . . . . Corruption Blocked . | . . . . . . . . . Effects 104 | . . . . . 10 94 . . Message Errors 20 | . . . . . 2 18 . . Matter Fused 21 | . . . . . 1 20 . . Heat Flow Errors 13 | . . . . . 2 11 . . Energy Discharges 15 | . . . . . 1 14 . . Parts Rejected 2 | . . . . . . 2 . . Parts Fused 2 | . . . . . 1 1 . . Data Loss (minor) 14 | . . . . . 1 13 . . Data Loss (major) 5 | . . . . . 1 4 . . Misfires 2 | . . . . . 1 1 . . Alerts 2 | . . . . . . 2 . . Misdirections 1 | . . . . . . 1 . . Weapon Failures 7 | . . . . . . 7 . . Overload Shots . | . . . . . . . . . Overflow Damage 121 | . . . . . 6 115 . . Projectiles 49 | . . . . . . 49 . . Explosions 72 | . . . . . 6 66 . . Melee . | . . . . . . . . . Knockbacks 7 | . . . . . . 7 . . Impact 1 | . . . . . . 1 . . Kinetic 6 | . . . . . . 6 . . Secondary . | . . . . . . . . . Self-Inflicted Damage 340 | . . . . 1 92 244 . 3 Shots 10 | . . . . . 3 6 . 1 Rammed 3 | . . . . 2 . 1 . . Targets Rammed 18 | . 1 . . 2 . 15 . . Kicked 15 | . 1 . . . . 14 . . Crushed . | . . . . . . . . . Highest Temperature 521 | . 41 . . 78 209 521 . . Average Temperature 115 | . 11 . . 27 45 148 . . Received Heat Transfer 966 | . 345 . . 27 63 441 . 90 Effects 8 | . . . . . . 8 . . Shutdowns 1 | . . . . . . 1 . . Energy Bleed 3 | . . . . . . 3 . . Interference 3 | . . . . . . 3 . . Damage (core) 1 | . . . . . . 1 . . Siege Activations . | . . . . . . . . . Robots Corrupted 1 | . . . . . 1 . . . Combat Hostiles 1 | . . . . . 1 . . . Parts Fried 8 | . . . . . 5 3 . . Impact Corruptions . | . . . . . . . . . Robots Melted . | . . . . . . . . . Combat Hostiles . | . . . . . . . . . Parts Melted 1 | . . . . . 1 . . . Heat Transferred 50 | . . . . . 50 . . . Parts Sabotaged . | . . . . . . . . . Parts Stolen . | . . . . . . . . . Parts Stripped . | . . . . . . . . . Power Chain Reactions 1 | . . . . . 1 . . . Latent Energy Used 1705 | . . . . . 1105 600 . . LE Corruption 29 | . . . . . 20 9 . . Alert | -11 -10 -10 -10 -9 -8 -8 -7 -7 ------- Run | Yrd Mat Min Exi Min Mat Sto Fac DSF Peak Influence 723 | . 52 19 . 154 584 723 328 229 Initial 328 | . . 4 . . 59 246 328 229 Average 314 | . 14 11 . 49 290 499 328 220 Maximum Alert Level 3 | . . . . . 2 3 1 1 Low Security (%) 36 | 100 100 100 . 100 53 . . 7 Level 1 22 | . . . . . 9 20 100 92 Level 2 41 | . . . . . 36 77 . . Level 3 . | . . . . . . 1 . . Level 4 . | . . . . . . . . . Level 5 . | . . . . . . . . . High Security . | . . . . . . . . . Max Security . | . . . . . . . . . Squads Dispatched 10 | . . . . . 3 5 . 2 Investigation 3 | . . . . . 1 2 . . Extermination . | . . . . . . . . . Reinforcement 6 | . . . . . 2 2 . 2 Assault 1 | . . . . . . 1 . . Garrison . | . . . . . . . . . Intercept . | . . . . . . . . . Searches Triggered . | . . . . . . . . . Construction Impeded 3 | . . . . . 1 2 . . Haulers Reinforced . | . . . . . . . . . Active Scanning Responses . | . . . . . . . . . Cargo Convoy Interrupts . | . . . . . . . . . Stealth | -11 -10 -10 -10 -9 -8 -8 -7 -7 --------- Run | Yrd Mat Min Exi Min Mat Sto Fac DSF Distress Signals 1 | . . . . . . 1 . . Communications Jammed . | . . . . . . . . . Distress Signals . | . . . . . . . . . Times Spotted 62 | . 8 2 . 8 9 32 . 3 Peak Tracking Total 6 | . 4 2 . 3 3 6 . 3 Tactical Retreats 4 | . 1 . . . . 2 . 1 Traps | -11 -10 -10 -10 -9 -8 -8 -7 -7 ------- Run | Yrd Mat Min Exi Min Mat Sto Fac DSF Traps Triggered 4 | . . . . . 1 1 2 . Indirectly 1 | . . . . . 1 . . . Trap Hack Attempts . | . . . . . . . . . Triggered . | . . . . . . . . . Disarmed . | . . . . . . . . . Reprogrammed . | . . . . . . . . . Reused . | . . . . . . . . . Traps Extracted . | . . . . . . . . . Installed . | . . . . . . . . . Triggered . | . . . . . . . . . Machines | -11 -10 -10 -10 -9 -8 -8 -7 -7 ---------- Run | Yrd Mat Min Exi Min Mat Sto Fac DSF Machines Disabled 11 | . . . . . 3 8 . . Max in Single Turn 2 | . . . . . 2 2 . . Machines Repaired . | . . . . . . . . . Machines Dismantled . | . . . . . . . . . Machines Sabotaged . | . . . . . . . . . Overloaded Fab Kills . | . . . . . . . . . Hacking | -11 -10 -10 -10 -9 -8 -8 -7 -7 --------- Run | Yrd Mat Min Exi Min Mat Sto Fac DSF Machines Accessed 14 | . 2 . 2 1 . 8 1 . Terminals 12 | . 2 . . 1 . 8 1 . Fabricators . | . . . . . . . . . Repair Stations . | . . . . . . . . . Recycling Units . | . . . . . . . . . Scanalyzers . | . . . . . . . . . Garrison Access . | . . . . . . . . . Total Hacks 26 | . 5 . 2 6 . 12 1 . Successful 10 | . 1 . 2 1 . 5 1 . Failed 16 | . 4 . . 5 . 7 . . Catastrophic 4 | . 2 . . . . 2 . . Database Lockouts . | . . . . . . . . . Manual 11 | . 4 . 1 . . 6 . . Terminals 24 | . 5 . . 6 . 12 1 . Fabricators . | . . . . . . . . . Repair Stations . | . . . . . . . . . Recycling Units . | . . . . . . . . . Scanalyzers . | . . . . . . . . . Garrison Access . | . . . . . . . . . Terminal Hacks 10 | . 1 . 2 1 . 5 1 . Record 1 | . . . 1 . . . . . Open Door 3 | . . . . . . 3 . . Open DSF 1 | . . . . . . . 1 . Branch Access Points 1 | . 1 . . . . . . . Patrol Status 1 | . . . . 1 . . . . Registered Components 1 | . . . . . . 1 . . Zone Layout 1 | . . . . . . 1 . . Derelict Proto ID Bank 1 | . . . 1 . . . . . Fabricator Hacks . | . . . . . . . . . Repair Station Hacks . | . . . . . . . . . Recycling Unit Hacks . | . . . . . . . . . Scanalyzer . | . . . . . . . . . Garrison Access Hacks . | . . . . . . . . . Unauthorized Hacks . | . . . . . . . . . Terminals . | . . . . . . . . . Fabricators . | . . . . . . . . . Repair Stations . | . . . . . . . . . Recycling Units . | . . . . . . . . . Scanalyzers . | . . . . . . . . . Garrison Access . | . . . . . . . . . Data Cores Recovered . | . . . . . . . . . Used . | . . . . . . . . . Hacking Detections 8 | . 1 . . 1 . 6 . . Full Trace Events 2 | . . . . 1 . 1 . . Feedback Events . | . . . . . . . . . Feedback Blocked . | . . . . . . . . . Robot Schematics Acquired . | . . . . . . . . . Robots Built . | . . . . . . . . . Authchips . | . . . . . . . . . Time . | . . . . . . . . . Total Robot Build Rating . | . . . . . . . . . Part Schematics Acquired . | . . . . . . . . . Parts Built . | . . . . . . . . . Authchips . | . . . . . . . . . Time . | . . . . . . . . . Total Part Build Rating . | . . . . . . . . . Parts Repaired . | . . . . . . . . . Time . | . . . . . . . . . Parts Recycled . | . . . . . . . . . Recycled Matter . | . . . . . . . . . Retrieved Matter . | . . . . . . . . . Retrieved Components . | . . . . . . . . . Parts Scanalyzed . | . . . . . . . . . Part Schematics Acquired . | . . . . . . . . . Parts Damaged . | . . . . . . . . . Bothacking | -11 -10 -10 -10 -9 -8 -8 -7 -7 ------------ Run | Yrd Mat Min Exi Min Mat Sto Fac DSF Used RIF Installer . | . . . . . . . . . Robots Hacked . | . . . . . . . . . Non-combat . | . . . . . . . . . Combat . | . . . . . . . . . Robot Hacks Applied . | . . . . . . . . . Relay Couplers Released . | . . . . . . . . . Fabnet Peak Effective % . | . . . . . . . . . Robots Rewired . | . . . . . . . . . Allies Hacked . | . . . . . . . . . Hacks Repelled . | . . . . . . . . . Allies | -11 -10 -10 -10 -9 -8 -8 -7 -7 -------- Run | Yrd Mat Min Exi Min Mat Sto Fac DSF Total Allies 14 | . . . . 4 . 10 . . Largest Group 10 | . . . . 4 3 10 . . Highest-Rated Group 173 | . . . . 71 55 173 . . Highest-Rated Ally 31 | . . . . 31 31 29 . . Total Orders 2 | . . . . . . 2 . . GUARD 2 | . . . . . . 2 . . Ally Attacks 179 | . . . . 25 20 134 . . Total Damage 1958 | . . . . 265 187 1506 . . Kills 28 | . . . . 9 4 15 . . Allies Corrupted . | . . . . . . . . . Allies Melted . | . . . . . . . . . Intel | -11 -10 -10 -10 -9 -8 -8 -7 -7 ------- Run | Yrd Mat Min Exi Min Mat Sto Fac DSF Robot Analysis Total . | . . . . . . . . . Derelict Logs Recovered 1 | . . . . 1 . . . . Drone Launches . | . . . . . . . . . Drone Recoveries . | . . . . . . . . . Exploration | -11 -10 -10 -10 -9 -8 -8 -7 -7 ------------- Run | Yrd Mat Min Exi Min Mat Sto Fac DSF Turns Passed 3925 | 45 221 54 389 792 276 1743 254 151 Spaces Moved 1951 | 32 120 80 284 272 184 744 122 113 Core 767 | 9 4 80 284 222 . 14 41 113 Treads . | . . . . . . . . . Legs 1181 | 23 116 . . 48 184 729 81 . Wheels . | . . . . . . . . . Hover . | . . . . . . . . . Flight 3 | . . . . 2 . 1 . . Fastest Speed 50 | 50 120 50 50 120 120 120 120 50 Average Speed 175 | 120 121 50 137 269 120 195 202 128 Slowest Speed 600 | 150 190 50 200 360 120 600 300 250 Overloaded Moves . | . . . . . . . . . Propulsion Burnouts . | . . . . . . . . . Robots Hopped . | . . . . . . . . . Cave-ins Triggered . | . . . . . . . . . Exploration Rate (%) 38 | 4 28 16 44 53 26 92 4 82 Regions Visited 8 Branch Regions 4 Pre-discovered Areas 1 | . . . . . . 1 . . Known Exits Taken 4 | . 1 . . . 1 1 1 . Unknown Exits Taken 4 | 1 . 1 1 1 . . . . Scrap Searched 1 | . . 1 . . . . . . Spaces Dug 6 | . . . . 6 . . . . Terrain Destroyed 290 | . . . . 6 44 240 . . Melee . | . . . . . . . . . Projectile 84 | . . . . 6 . 78 . . AOE 206 | . . . . . 44 162 . . Terrain Rammed . | . . . . . . . . . Walls Destroyed . | . . . . . . . . . Machines Disabled . | . . . . . . . . . Actions | -11 -10 -10 -10 -9 -8 -8 -7 -7 --------- Run | Yrd Mat Min Exi Min Mat Sto Fac DSF Total 2252 | 36 155 93 284 307 229 904 128 116 Wait 144 | . 10 13 . 20 31 70 . . Move 1943 | 31 119 79 283 271 183 743 121 113 Hop . | . . . . . . . . . Pick Up 10 | . . . . . 4 3 3 . Fast Attach 28 | 5 1 . 1 5 1 11 4 . Attach 10 | . . . . 1 . 8 . 1 Detach 4 | . . 1 . . . 3 . . Swap 2 | . . . . . 1 1 . . Drop 9 | . 1 . . 2 . 6 . . Fire 84 | . 23 . . 6 9 44 . 2 Melee . | . . . . . . . . . Ram 3 | . . . . 2 . 1 . . Kick 15 | . 1 . . . . 14 . . Crush . | . . . . . . . . . Escape Stasis . | . . . . . . . . . Rewire . | . . . . . . . . . Trap . | . . . . . . . . . Miscellaneous . | . . . . . . . . . Route ------- -11/Scrapyard -10/Materials (discovered 2 exits: *Min x2) -10/Mines -10/Exiles -9/Mines -8/Materials (discovered 2 exits: Fac / *Sto) -8/Storage -7/Factory -7/DSF (discovered 1 exit: [*Fac]) History --------- Turn | Location | Event 12 | -11/Scrapyard | Discovered new exit (range 15) 46 | -11/Scrapyard | Entered Materials 102 | -10/Materials | Identified exit to Mines 260 | -10/Materials | Core integrity fell below 50% 267 | -10/Materials | Entered Mines 293 | -10/Mines | Lost 4 parts (2n2w) 307 | -10/Mines | Build established: Mutant 319 | -10/Mines | Deemed a non-threat by the Exiles lab entrance 319 | -10/Mines | Discovered new exit (range 5) 321 | -10/Mines | Entered Exiles 337 | -10/Exiles | Met 8R-AWN 344 | -10/Exiles | Met EX-HEX 359 | -10/Exiles | Met EX-BIN 365 | -10/Exiles | Aligned with FarCom system 366 | -10/Exiles | Given EX-Vault access code 378 | -10/Exiles | Opened EX-Vault 381 | -10/Exiles | Found Latent Energy Streamer 424 | -10/Exiles | Warned to stay clear of 0b10 Research branches 682 | -10/Exiles | Discovered new exit (range 15) 710 | -10/Exiles | Left Exiles lab with Latent Energy Streamer 710 | -10/Exiles | Entered Mines 714 | -9/Mines | Learned 4 Materials zone layouts 714 | -9/Mines | Assisted by bots powering up and referring to "LRC-V3" 715 | -9/Mines | Core integrity fell below 20% 800 | -9/Mines | Found a hidden stash of uninstalled traps 1316 | -9/Mines | Received a Mining Laser from a helpful Derelict 1459 | -9/Mines | Discovered new exit (range 8) 1502 | -9/Mines | Entered Materials 1502 | -8/Materials | Accompanied by 3 allies 1502 | -8/Materials | Evolved 4 slots: Utility x2, Weapon x2 1503 | -8/Materials | Identified exit to Storage 1503 | -8/Materials | Identified exit to Factory 1652 | -8/Materials | System corruption reached 10% 1718 | -8/Materials | Destroyed 11 combat bots 1778 | -8/Materials | Entered Storage 2014 | -8/Storage | System corruption reached 30% 2356 | -8/Storage | Build established: Hacker-Skirmisher 2472 | -8/Storage | Assisted by bots powering up and referring to "LRC-V3" 2671 | -8/Storage | Lost 3 allies 2821 | -8/Storage | Learned location of Armory (-4) 3187 | -8/Storage | Found Prototype Launcher 3187 | -8/Storage | Identified Scatter Rocket Array 3378 | -8/Storage | First assault squad dispatched 3472 | -8/Storage | Core integrity fell below 50% 3505 | -8/Storage | Discovered exit to Factory (range 14) 3521 | -8/Storage | Entered Factory 3521 | -7/Factory | Evolved 2 slots: Power x1, Utility x1 3524 | -7/Factory | Lost 8 parts (1p2n1u4w) 3775 | -7/Factory | Identified exit to DSF 3775 | -7/Factory | Entered DSF 3811 | -7/DSF | Additional patrols routed to DSF 3917 | -7/DSF | Discovered new exit (range 15) 3926 | -7/DSF | Self-destructed Last Messages --------------- dispatching Specialist reinforcements to area. Hostiles detected in DSF, routing additional patrols. Knocked back. Acquired 6 matter. Proton Missile Launcher destroyed. Gauss Cannon destroyed. Slug penetrates Wall. H-61 Shepherd calls for reinforcements. ALERT: Hostile activity reported, dispatching reinforcements to area. Penetrated by Slug. Slug penetrates Wall. Critical hit (Burn: +37). Penetrated by Slug. Acquired 5 matter. Slug penetrates Wall. Penetrated by Slug. Proton Missile Launcher destroyed. EXIT=FOUND Map ----- +----------------------------------------------------+ | # # #????????????????????? | | #????????????????????? | | #????????????????????? | | # ### ###????????????????????? | | # ### "##????????????????????? | | ###### **#????????????????????? | | ?????# **#????????????????????? | | ?????# **#????????????????????? | | ?????### "##????????????????????? | | ??????]] !!?????????????????????? | | ?????#]] !!#????????????????????? | | ?????#]] !!#????????????????????? | | ##???### ##?????????###????????? | | #?!!#?# ##?????????? !????????? | | #!!!## ?????????## !????????? | | ?????????? ????????? | | ?????????? ????????? | | ????????C? ????????? | | #!!!## ??????????# ????????? | | #?!!#?# #??????????# ????????? | | ##???### ##???????### ##???????? | | ??????!! ==???????#!! !#???????? | | ???????! =????????#!! !????????? | | ???????! =?????????!! !????????? | | ?????### ###??????### ##???????? | | ?????#!! ^ #??????#!! @#???????? | | ?????#!! #??????#!! #???????? | | ######!! ########## ##???????? | | *# #?# #?# #!!### ###??????? | | *# ### ### #!!##x ""##?????? | | """""????? | | <""##"????? | | *#***#!! !!#!!!# ##"""""#??????? | | ######!! !!#########"""""#??????? | | ?????#########???????##"####??????? | | ??????????????????????#"#?????????? | | ???????????????????????""?????????? | | ??????????????????????????????????? | | ??????????????????????????????????? | | ??????????????????????????????????? | | ??????????????????????????????????? | | ??????????????????????????????????? | | | | | | | | | | | | | | | | | +----------------------------------------------------+ Best States ------------- Heat Dissipation 34 Energy Generation 14 Energy Capacity 280 Matter Stores 300 Matter Capacity 300 Sight Range 16 Terrain Scan Density 10 Additional Mass Support 6 Weapon Shielding 33 Evasion (%) 55 Offensive Hacking 20 Item Schematics ----------------- None Robot Schematics ------------------ None Fabricated ------------ Nothing Alien Tech Used ----------------- None Achievements -------------- None Challenges ------------ None Game ------ Seed DeliveryInsulationRifle Manual? 0 Play Time 00:25:09 Cumulative 33.6 hours Start 2024.07.15 @ 22:15:07 End 2024.07.15 @ 22:39:14 Sessions 1 Manual Loads 0 Difficulty Rogue Special Mode None Game No. 70 Rogue 4 Adventurer 66 Explorer 0 Win Type - Total 0 Types 0/0/0/0/0/0/0/0/0 Lore% 26 Gallery% 30 Achievement% 29 Wizard Run 0 Options --------- Layout 1 ASCII 0 Keyboard 0 Movement Mouse Keybinds 0 Fullscreen 1 Font 32/SmallcapsGlow Map View 50x35 Zoom Use 0% Tactical HUD 0 Map Filters NONE Filters NONE Steam 1 RUN: bd9546e5-db3e-40ed-b049-5ae51e1a3bd5